bitfinex/quotes_SOLUSD_20220113
["timestamp","ask_amount","ask_price","bid_price","bid_amount"]
[1642060505911,80.71608303,151.61,151.5,2.638]
[1642060506310,90.61238303,151.61,151.51,9.8975]
[1642060506713,90.61238303,151.61,151.5,2.638]
[1642060507613,24.6108,151.6,151.5,2.638]
[1642060507813,9.8983,151.58,151.5,2.638]
[1642060508015,2.638,151.57,151.49,46.5856]
[1642060508213,15.78304169,151.56,151.49,46.5856]
[1642060508614,16.03304169,151.56,151.49,46.5856]
[1642060509013,0.25,151.56,151.49,46.5856]
[1642060509714,24.431,151.57,151.49,46.5856]
[1642060514760,24.431,151.57,151.49,46.8356]
[1642060517262,0.25,151.57,151.49,46.8356]
[1642060517464,0.25,151.57,151.5,6.26]
[1642060517664,0.25,151.58,151.51,2.638]
[1642060517864,0.25,151.58,151.53,9.8961]
[1642060518064,27.2735,151.6,151.53,9.8961]
[1642060518266,49.82786534,151.6,151.53,9.8961]
[1642060518665,59.72486534,151.6,151.53,9.8961]
[1642060519469,59.72486534,151.6,151.51,36.9513]
[1642060520080,59.72486534,151.6,151.51,37.2013]
[1642060520572,59.72486534,151.6,151.51,36.9513]
[1642060520771,59.72486534,151.6,151.51,34.3133]
[1642060528576,59.72486534,151.6,151.52,12.5347]
[1642060528779,59.72486534,151.6,151.52,9.8967]
[1642060530381,69.22486534,151.6,151.52,9.8967]
[1642060530782,69.22486534,151.6,151.5,9.8979]
[1642060531081,69.22486534,151.6,151.48,2.638]
[1642060531082,77.24244837,151.6,151.48,2.638]
[1642060531282,11.27082487,151.59,151.45,2.638]
[1642060531481,9.9016,151.53,151.45,2.638]
[1642060531682,10.1516,151.53,151.45,2.638]
[1642060532082,10.277,151.55,151.45,12.5396]
[1642060532282,24.7742,151.54,151.45,12.7896]
[1642060532713,25.0242,151.54,151.45,12.7896]
[1642060533411,25.0242,151.54,151.45,12.5396]
[1642060533911,25.0242,151.54,151.46,6.0]
[1642060534113,25.0242,151.54,151.47,2.64]
[1642060534312,34.9251,151.54,151.47,2.64]
[1642060535211,59.73160644,151.54,151.47,2.64]
[1642060535412,59.73160644,151.54,151.46,35.4582]
[1642060535616,59.73160644,151.54,151.46,32.8182]
[1642060536213,59.73160644,151.54,151.46,22.9178]
[1642060536413,59.73160644,151.54,151.45,2.64]
[1642060536713,59.73160644,151.54,151.45,2.89]
[1642060536915,59.73160644,151.54,151.45,2.64]
[1642060537113,2.64,151.53,151.45,2.64]
[1642060537314,9.9042,151.49,151.45,2.64]
[1642060537513,16.6722,151.49,151.45,2.64]
[1642060537714,16.9222,151.49,151.45,2.64]
[1642060538917,10.1542,151.49,151.45,2.64]
[1642060539518,10.1542,151.49,151.43,2.64]
[1642060539920,0.25,151.49,151.43,2.64]
[1642060540320,110.1704,151.51,151.43,2.64]
[1642060540523,107.5304,151.51,151.42,24.143]
[1642060540728,107.5304,151.51,151.42,24.393]
[1642060542323,107.5304,151.51,151.43,9.9028]
[1642060542622,97.6271,151.51,151.43,12.5428]
[1642060543523,107.5299,151.51,151.43,12.5428]
[1642060545422,97.6271,151.51,151.43,12.5428]
[1642060546724,2.64,151.53,151.44,26.83759737]
[1642060546924,2.64,151.53,151.45,76.4112]
[1642060547124,2.64,151.53,151.46,15.5]
[1642060547325,2.64,151.53,151.46,15.76]
[1642060547524,2.64,151.53,151.46,16.01]
[1642060548030,2.64,151.53,151.49,9.8978]
[1642060548227,31.66965325,151.54,151.46,15.5]
[1642060548427,31.66965325,151.54,151.46,15.75]
[1642060548626,31.66965325,151.54,151.46,9.75]
[1642060549325,31.66965325,151.54,151.47,9.8999]
[1642060549527,31.66965325,151.54,151.47,12.5399]
[1642060549726,31.66965325,151.54,151.47,12.7899]
[1642060550128,31.66965325,151.54,151.47,12.5399]
[1642060550327,31.91965325,151.54,151.47,12.5399]
[1642060550529,31.91965325,151.54,151.47,12.7899]
[1642060551327,31.91965325,151.54,151.47,12.5399]
[1642060551528,41.82065325,151.54,151.47,12.5399]
[1642060551731,2.64,151.53,151.47,9.8999]
[1642060551928,41.82065325,151.54,151.47,9.8999]
[1642060553431,41.82065325,151.54,151.46,9.5]
[1642060553638,41.82065325,151.54,151.46,9.75]
[1642060556436,41.82065325,151.54,151.46,9.5]
[1642060556641,41.82065325,151.54,151.45,34.0751]
[1642060556835,2.64,151.53,151.45,34.0751]
[1642060557035,9.9021,151.52,151.45,34.0751]
[1642060557236,10.1521,151.52,151.45,34.0751]
[1642060558037,10.1521,151.52,151.45,24.1739]
[1642060560343,10.1521,151.52,151.45,34.0755]
[1642060560745,10.1521,151.52,151.45,24.1739]
[1642060561046,10.1521,151.52,151.43,12.14]
[1642060561245,22.7831,151.51,151.43,9.75]
[1642060561646,23.0331,151.51,151.43,9.75]
[1642060562146,23.0331,151.51,151.44,1.10819276]
[1642060562345,23.0331,151.51,151.43,9.75]
[1642060563144,0.25,151.51,151.43,9.75]
[1642060563347,75.7275,151.53,151.44,9.902]
[1642060563544,73.0875,151.53,151.44,32.5868]
[1642060563746,73.0875,151.53,151.44,32.8368]
[1642060564647,73.3375,151.53,151.44,32.8368]
[1642060564845,83.239,151.53,151.46,9.901]
[1642060565245,83.239,151.53,151.46,10.151]
[1642060568149,83.239,151.53,151.45,2.64]
[1642060568349,34.3399,151.52,151.45,2.64]
[1642060568549,36.9799,151.52,151.44,22.6848]
[1642060568751,37.2299,151.52,151.44,22.9348]
[1642060569150,36.9799,151.52,151.44,22.9348]
[1642060569754,34.3399,151.52,151.45,2.64]
[1642060570152,34.3399,151.52,151.45,2.89]
[1642060570752,34.5899,151.52,151.45,2.89]
[1642060572753,34.5899,151.52,151.45,2.64]
[1642060572952,9.9038,151.5,151.43,9.5]
[1642060573153,9.9038,151.5,151.42,9.9031]
[1642060573154,10.1538,151.5,151.42,9.9031]
[1642060574353,15.69121853,151.48,151.42,9.9031]
[1642060574754,15.94121853,151.48,151.42,9.9031]
[1642060575154,15.94121853,151.48,151.42,10.1531]
[1642060575857,15.94121853,151.48,151.42,0.25]
[1642060576160,15.94121853,151.48,151.41,36.1426]
[1642060578062,25.84591853,151.48,151.41,36.1426]
[1642060579764,25.84591853,151.48,151.41,26.2382]
[1642060579968,25.84591853,151.48,151.41,2.89]
[1642060580769,2.641,151.47,151.4,92.9]
[1642060581073,9.9065,151.46,151.4,92.9]
[1642060581288,10.1565,151.46,151.4,92.9]
[1642060582387,10.1565,151.46,151.38,27.348]
[1642060582592,22.6366,151.45,151.38,27.348]
[1642060582787,25.5276,151.45,151.38,27.348]
[1642060582988,35.4345,151.45,151.38,27.348]
[1642060583188,32.7935,151.45,151.38,24.707]
[1642060584590,32.7935,151.45,151.37,9.9065]
[1642060585292,32.7935,151.45,151.37,0.25]
[1642060585790,2.641,151.44,151.36,25.2287]
[1642060585989,2.641,151.44,151.36,22.5877]
[1642060586190,12.7988,151.44,151.36,22.8377]
[1642060586994,12.7988,151.44,151.36,32.7454]
[1642060587192,10.1578,151.44,151.36,32.7454]
[1642060587794,22.7637,151.43,151.36,32.7454]
[1642060588093,2.642,151.47,151.37,1.10819276]
[1642060588391,23.0341,151.47,151.39,9.9051]
[1642060588791,23.0341,151.47,151.39,10.1551]
[1642060589695,23.0341,151.47,151.4,2.641]
[1642060590193,32.9396,151.47,151.4,2.891]
[1642060590592,32.9396,151.47,151.4,0.25]
[1642060591194,32.9396,151.47,151.39,2.891]
[1642060592502,32.9396,151.47,151.39,2.641]
[1642060592694,41.1706,151.47,151.39,2.641]
[1642060592896,2.641,151.46,151.39,2.641]
[1642060593094,9.9088,151.43,151.39,2.641]
[1642060593293,18.4468,151.43,151.39,2.641]
[1642060593695,22.63215021,151.42,151.39,2.641]
[1642060593994,6.06439994,151.41,151.39,2.641]
[1642060594293,6.31439994,151.41,151.39,2.641]
[1642060595397,6.31439994,151.41,151.35,12.5498]
[1642060595596,6.31439994,151.41,151.35,2.892]
[1642060596605,16.22379994,151.41,151.35,2.892]
[1642060597908,16.22379994,151.41,151.35,2.642]
[1642060598905,2.642,151.4,151.34,92.9]
[1642060599105,24.1847,151.4,151.34,92.9]
[1642060599306,24.4347,151.4,151.34,92.9]
[1642060599705,24.4347,151.4,151.34,102.8087]
[1642060600311,0.25,151.4,151.34,105.7007]
[1642060600707,47.22075021,151.42,151.34,105.7007]
[1642060601306,46.97075021,151.42,151.34,105.7007]
[1642060601508,24.3386,151.42,151.34,106.80889276]
[1642060601907,24.3386,151.42,151.35,0.07]
[1642060602111,24.3386,151.42,151.37,9.9068]
[1642060602507,24.3386,151.42,151.37,10.1568]
[1642060604512,24.5886,151.42,151.36,2.642]
[1642060604709,24.3386,151.42,151.35,34.5821]
[1642060605011,24.3386,151.42,151.36,2.642]
[1642060605211,24.3386,151.42,151.35,37.4741]
[1642060608315,24.3386,151.42,151.35,37.5441]
[1642060608716,24.5886,151.42,151.35,37.5441]
[1642060610925,34.4973,151.42,151.35,37.5441]
[1642060611123,34.4973,151.42,151.35,34.9021]
[1642060611926,34.4973,151.42,151.35,24.9943]
[1642060612825,34.4973,151.42,151.35,0.07]
[1642060613527,12.5515,151.41,151.35,0.07]
[1642060613727,12.8015,151.41,151.35,0.07]
[1642060614930,22.5835,151.4,151.35,0.07]
[1642060615155,32.7435,151.4,151.35,0.07]
[1642060617561,32.4935,151.4,151.35,0.07]
[1642060618764,32.7435,151.4,151.35,0.07]
[1642060619362,32.4935,151.4,151.35,0.07]
[1642060620762,32.7435,151.4,151.35,0.07]
[1642060624566,32.4935,151.4,151.35,0.07]
[1642060625969,32.7435,151.4,151.35,0.07]
[1642060626567,32.4935,151.4,151.35,0.07]
[1642060627769,32.7435,151.4,151.35,0.07]
[1642060633374,32.7435,151.4,151.35,0.097651]
[1642060633674,9.9139,151.37,151.35,0.097651]
[1642060633874,6.06439994,151.36,151.35,0.097651]
[1642060634278,6.31439994,151.36,151.35,0.097651]
[1642060635283,16.22829994,151.36,151.35,0.097651]
[1642060636786,6.06439994,151.36,151.35,0.097651]
[1642060640393,33.1089,151.39,151.35,0.097651]
[1642060640892,23.1983,151.39,151.35,0.097651]
[1642060641193,23.4483,151.39,151.35,0.097651]
[1642060642706,20.4483,151.39,151.35,0.097651]
[1642060643907,9.9122,151.37,151.35,0.097651]
[1642060644310,10.1622,151.37,151.35,0.097651]
[1642060645111,49.97749994,151.36,151.35,0.097651]
[1642060645310,52.61949994,151.36,151.35,0.097651]
[1642060645512,52.86949994,151.36,151.35,0.097651]
[1642060645909,62.36949994,151.36,151.35,0.097651]
[1642060646111,62.36949994,151.36,151.3,1.88947713]
[1642060646112,15.4785871,151.35,151.3,1.88947713]
[1642060646315,15.4785871,151.35,151.24,5.37831265]
[1642060646316,12.142,151.34,151.28,1.88947713]
[1642060646511,9.9158,151.32,151.28,1.88947713]
[1642060646711,16.4858,151.32,151.28,1.88947713]
[1642060647511,16.4858,151.32,151.24,4.53147713]
[1642060648110,10.1658,151.32,151.24,4.78147713]
[1642060648916,10.1658,151.32,151.24,4.53147713]
[1642060649919,10.1658,151.32,151.24,2.642]
[1642060650619,12.8098,151.32,151.24,2.642]
[1642060651817,12.8098,151.32,151.23,2.644]
[1642060652218,12.8098,151.32,151.23,2.894]
[1642060653118,12.8098,151.32,151.23,2.644]
[1642060655720,79.3198,151.32,151.23,2.644]
[1642060656622,12.8098,151.32,151.23,2.644]
[1642060658424,24.6734,151.31,151.23,2.644]
[1642060658624,9.918,151.28,151.23,2.644]
[1642060659024,10.168,151.28,151.23,2.644]
[1642060661026,10.168,151.28,151.22,95.544]
[1642060661226,10.168,151.28,151.22,93.15]
[1642060661632,10.168,151.28,151.22,92.9]
[1642060662436,34.7334,151.28,151.22,92.9]
[1642060662633,34.7334,151.28,151.21,2.644]
[1642060662833,2.644,151.27,151.2,1.88947713]
[1642060663034,9.9197,151.26,151.2,1.88947713]
[1642060663333,10.1697,151.26,151.19,27.98357713]
[1642060664233,0.25,151.26,151.19,36.263]
[1642060664632,27.4594,151.28,151.19,36.263]
[1642060664833,24.8154,151.28,151.19,36.263]
[1642060666232,9.9186,151.27,151.19,36.263]
[1642060666637,10.1686,151.27,151.19,36.263]
[1642060668035,0.25,151.27,151.19,36.263]
[1642060668237,24.8154,151.28,151.19,36.263]
[1642060669442,24.8154,151.28,151.19,38.15247713]
[1642060670140,0.25,151.28,151.19,38.15247713]
[1642060670544,2.894,151.29,151.19,38.15247713]
[1642060671243,25.7619,151.29,151.19,38.15247713]
[1642060672245,35.6792,151.29,151.19,38.15247713]
[1642060673044,35.6792,151.29,151.2,1.88947713]
[1642060674045,35.6792,151.29,151.19,38.15247713]
[1642060674744,35.6792,151.29,151.19,28.23357713]
[1642060674949,35.6792,151.29,151.2,1.88947713]
[1642060676877,35.6792,151.29,151.2,1.90947713]
[1642060677680,35.6792,151.29,151.2,0.02]
[1642060681187,35.7492,151.29,151.2,0.02]
[1642060681584,102.2592,151.29,151.2,0.02]
[1642060682584,9.9204,151.25,151.2,0.02]
[1642060682785,10.1704,151.25,151.2,0.02]
[1642060690803,0.25,151.25,151.2,0.02]
[1642060691202,23.3184,151.27,151.2,0.02]
[1642060692303,9.9193,151.26,151.2,0.02]
[1642060692704,10.1693,151.26,151.2,0.02]
[1642060692903,9.9193,151.26,151.2,0.02]
[1642060694138,10.1693,151.26,151.2,1.90947713]
[1642060694338,10.1693,151.26,151.2,2.15947713]
[1642060694542,0.25,151.26,151.2,12.07777713]
[1642060694742,23.3184,151.27,151.2,12.07777713]
[1642060695338,23.3184,151.27,151.2,11.82777713]
[1642060696143,33.2369,151.27,151.2,11.82777713]
[1642060697140,33.2369,151.27,151.2,1.90947713]
[1642060698440,2.644,151.26,151.2,0.02]
[1642060698642,0.25,151.26,151.2,0.02]
[1642060699841,33.2369,151.27,151.2,0.02]
[1642060700442,35.8809,151.27,151.2,0.02]
[1642060700644,33.2369,151.27,151.2,0.02]
[1642060704253,33.2369,151.27,151.2,1.90947713]
[1642060705076,33.2369,151.27,151.2,0.02]
[1642060710054,32.9869,151.27,151.2,0.02]
[1642060712357,32.9869,151.27,151.2,2.664]
[1642060716858,9.9178,151.29,151.2,12.582]
[1642060717062,73.82646653,151.3,151.2,23.97147713]
[1642060717258,73.82646653,151.3,151.2,25.07668045]
[1642060717660,73.82646653,151.3,151.21,24.9366]
[1642060717859,72.038,151.3,151.22,2.644]
[1642060718062,9.9164,151.31,151.23,41.29266995]
[1642060718261,4.43246653,151.32,151.23,41.29266995]
[1642060718262,1.78846653,151.32,151.24,12.144]
[1642060718461,1.78846653,151.32,151.24,38.05430332]
[1642060719061,24.29576653,151.33,151.24,38.05430332]
[1642060719665,1.78846653,151.33,151.24,38.05430332]
[1642060719863,77.2706,151.34,151.26,1.88947713]
[1642060720300,77.2706,151.34,151.27,9.9135]
[1642060721092,2.642,151.36,151.27,9.9135]
[1642060722197,2.642,151.36,151.27,19.4135]
[1642060722394,56.6439123,151.37,151.28,2.642]
[1642060722595,9.9126,151.36,151.29,9.9121]
[1642060724297,9.9126,151.36,151.28,12.555]
[1642060724898,24.3988,151.35,151.28,12.555]
[1642060725099,24.3988,151.35,151.28,9.913]
[1642060726701,34.3122,151.35,151.28,9.913]
[1642060726904,34.3122,151.35,151.26,12.5558]
[1642060727103,2.642,151.34,151.26,12.5558]
[1642060727308,2.642,151.34,151.26,9.9138]
[1642060728307,9.9141,151.34,151.26,9.9138]
[1642060729206,24.3554,151.33,151.26,9.9138]
[1642060730308,34.27,151.33,151.26,9.9138]
[1642060731908,24.3554,151.33,151.26,9.9138]
[1642060732410,2.642,151.34,151.26,9.9138]
[1642060732609,9.9138,151.35,151.27,2.642]
[1642060732807,9.9138,151.35,151.27,12.5555]
[1642060733007,9.9138,151.35,151.27,9.9135]
[1642060735810,23.4797,151.34,151.26,12.5564]
[1642060736014,33.3941,151.34,151.26,12.5564]
[1642060737012,23.4797,151.34,151.26,13.66160332]
[1642060738516,2.642,151.36,151.26,13.66160332]
[1642060738717,24.3293,151.36,151.3,9.9115]
[1642060738919,25.6618,151.38,151.3,15.6005]
[1642060739118,23.0198,151.38,151.31,2.642]
[1642060739716,23.0198,151.38,151.31,29.47026059]
[1642060739919,23.0198,151.38,151.33,9.9093]
[1642060740127,29.27969643,151.41,151.33,9.9093]
[1642060740917,24.6014,151.4,151.33,9.9093]
[1642060741320,34.5115,151.4,151.33,9.9093]
[1642060743421,24.6014,151.4,151.33,9.9093]
[1642060744023,26.63769643,151.41,151.33,9.9093]
[1642060745527,99.2468,151.42,151.33,9.9093]
[1642060746548,96.6048,151.42,151.34,2.642]
[1642060746750,96.6048,151.42,151.36,9.9072]
[1642060746950,4.43046653,151.43,151.36,9.9072]
[1642060746951,1.78846653,151.43,151.37,2.642]
[1642060747149,1.78846653,151.43,151.36,24.1942]
[1642060747348,1.78846653,151.43,151.37,2.642]
[1642060747748,26.16216653,151.45,151.37,27.51829236]
[1642060748650,24.3737,151.45,151.37,27.51829236]
[1642060749050,26.26336653,151.47,151.4,9.9052]
[1642060749251,1.78846653,151.47,151.4,9.9052]
[1642060749653,1.78846653,151.48,151.4,11.01040332]
[1642060751458,79.432,151.49,151.4,11.01040332]
[1642060752757,79.432,151.49,151.41,66.12]
[1642060752956,79.432,151.49,151.45,9.9017]
[1642060753157,2.64,151.51,151.45,34.28326654]
[1642060753364,1.78846653,151.52,151.45,34.28326654]
[1642060753759,4.42846653,151.53,151.45,34.28326654]
[1642060753958,1.78846653,151.53,151.45,34.28326654]
[1642060754362,1.78846653,151.53,151.46,66.12]
[1642060754560,1.78846653,151.53,151.49,9.8984]
[1642060755062,1.78846653,151.55,151.49,9.8984]
[1642060755865,78.0297,151.56,151.49,9.8984]
[1642060758366,78.0297,151.56,151.46,2.64]
[1642060758564,27.3222,151.55,151.44,26.3442]
[1642060758766,27.3222,151.55,151.44,23.7042]
[1642060760269,9.9011,151.54,151.46,9.9007]
[1642060760467,2.64,151.53,151.46,9.9007]
[1642060760870,2.64,151.54,151.46,9.9007]
[1642060761269,9.9017,151.53,151.44,36.2463]
[1642060761469,2.64,151.52,151.44,36.2463]
[1642060761769,2.64,151.52,151.44,33.6063]
[1642060761968,80.6697,151.56,151.45,2.64]
[1642060762170,24.6626,151.55,151.45,2.64]
[1642060762768,34.5629,151.55,151.48,9.8995]
[1642060762971,2.64,151.54,151.45,2.64]
[1642060764172,2.64,151.54,151.46,9.9007]
[1642060764974,12.541,151.54,151.46,9.9007]
[1642060766474,12.611,151.54,151.46,9.9007]
[1642060768279,12.611,151.54,151.44,33.6062]
[1642060768480,34.6331,151.53,151.44,33.6062]
[1642060771585,37.2731,151.53,151.44,33.6062]
[1642060772811,36.42156653,151.53,151.45,2.64]
[1642060773012,36.42156653,151.53,151.46,9.9012]
[1642060773611,34.6331,151.53,151.46,9.9012]
[1642060774415,36.42156653,151.53,151.46,9.9012]
[1642060776815,26.51936653,151.53,151.46,40.14617782]
[1642060777213,24.7309,151.53,151.46,40.14617782]
[1642060777813,26.51936653,151.53,151.46,40.14617782]
[1642060778013,26.51936653,151.53,151.47,2.64]
[1642060778214,26.51936653,151.53,151.48,9.8999]
[1642060778414,2.71,151.52,151.45,2.64]
[1642060778617,2.71,151.52,151.39,4.52947713]
[1642060778817,100.46218303,151.51,151.39,1.88947713]
[1642060779018,2.711,151.5,151.39,1.88947713]
[1642060779216,22.82653648,151.49,151.39,1.88947713]
[1642060779417,2.711,151.48,151.39,1.88947713]
[1642060779616,9.9054,151.47,151.38,37.42080932]
[1642060779815,2.641,151.46,151.38,37.42080932]
[1642060780016,25.4858,151.46,151.38,37.42080932]
[1642060780218,25.4858,151.46,151.38,27.51550932]
[1642060781118,22.8448,151.46,151.39,12.5452]
[1642060781318,22.8448,151.46,151.38,27.51550932]
[1642060781618,25.4858,151.46,151.38,27.51550932]
[1642060783417,22.8448,151.46,151.38,30.15650932]
[1642060785821,25.4858,151.46,151.38,27.51550932]
[1642060788022,22.8448,151.46,151.38,27.51550932]
[1642060788923,32.7508,151.46,151.38,27.51550932]
[1642060789124,33.0008,151.46,151.38,27.51550932]
[1642060790325,33.0008,151.46,151.37,12.5464]
[1642060790527,33.0008,151.46,151.37,9.9054]
[1642060790829,12.5464,151.47,151.37,9.9054]
[1642060791128,2.641,151.47,151.37,76.5354]
[1642060791367,4.42946653,151.47,151.38,27.71513886]
[1642060791528,1.78846653,151.47,151.39,9.9043]
[1642060791927,1.78846653,151.47,151.39,16.7733]
[1642060792129,27.63286653,151.49,151.39,16.7733]
[1642060792331,24.99186653,151.49,151.4,66.12]
[1642060792531,24.99186653,151.49,151.4,72.63]
[1642060793332,23.2034,151.49,151.4,72.63]
[1642060793531,23.2034,151.49,151.41,2.641]
[1642060793935,23.2034,151.49,151.41,3.151]
[1642060794336,24.7628,151.5,151.44,38.82283815]
[1642060794536,24.7628,151.5,151.44,29.17173815]
[1642060797641,24.7628,151.5,151.44,28.92173815]
[1642060798239,25.0128,151.5,151.44,28.92173815]
[1642060798438,25.0128,151.5,151.41,12.5438]
[1642060798642,2.641,151.49,151.41,9.9028]
[1642060798861,2.641,151.49,151.41,10.1528]
[1642060799062,2.891,151.49,151.41,10.1528]
[1642060799261,26.1381,151.49,151.41,10.1528]
[1642060799462,26.1381,151.49,151.41,41.25564886]
[1642060800368,26.1381,151.49,151.41,31.35284886]
[1642060800369,36.0424,151.49,151.41,31.35284886]
[1642060800564,36.0424,151.49,151.41,31.10284886]
[1642060802065,36.0424,151.49,151.41,31.35284886]
[1642060803066,33.4014,151.49,151.41,31.35284886]
[1642060803670,35.28688818,151.49,151.41,31.35284886]
[1642060804068,35.28688818,151.49,151.41,33.99384886]
[1642060804469,35.03688818,151.49,151.41,33.99384886]
[1642060805473,35.03688818,151.49,151.41,33.74384886]
[1642060805872,35.28688818,151.49,151.41,33.74384886]
[1642060806071,35.28688818,151.49,151.41,33.99384886]
[1642060807175,33.4014,151.49,151.41,33.99384886]
[1642060813280,53.88102196,151.49,151.41,2.641]
[1642060813480,53.88102196,151.49,151.37,9.906]
[1642060813481,9.906,151.47,151.38,2.641]
[1642060813682,9.906,151.47,151.38,27.2793]
[1642060813882,10.156,151.47,151.38,27.2793]
[1642060814081,9.906,151.47,151.38,27.2793]
[1642060814583,9.906,151.47,151.39,31.26015232]
[1642060814782,26.1381,151.49,151.39,31.26015232]
[1642060815782,9.9048,151.48,151.39,31.26015232]
[1642060815983,10.1548,151.48,151.39,31.26015232]
[1642060816182,24.3523,151.47,151.39,31.26015232]
[1642060816582,24.6023,151.47,151.39,31.26015232]
[1642060817286,24.6023,151.47,151.38,27.2793]
[1642060817287,34.5083,151.47,151.38,27.2793]
[1642060817481,2.641,151.46,151.35,37.0171]
[1642060817688,76.0732,151.46,151.35,27.1103]
[1642060817886,76.3232,151.46,151.35,27.1103]
[1642060818090,76.3232,151.46,151.35,27.3603]
[1642060818287,45.38634253,151.45,151.35,27.3603]
[1642060818488,45.63634253,151.45,151.35,27.3603]
[1642060819288,9.9077,151.44,151.35,27.3603]
[1642060819489,9.9077,151.44,151.35,2.641]
[1642060819490,14.47228303,151.44,151.35,2.641]
[1642060819690,1.67258303,151.43,151.32,26.0476]
[1642060820092,1.99258303,151.43,151.32,26.0476]
[1642060820694,1.67258303,151.42,151.32,26.0476]
[1642060820893,2.642,151.41,151.32,23.4056]
[1642060821093,2.892,151.41,151.32,23.4056]
[1642060821295,9.9103,151.4,151.32,23.4056]
[1642060821494,24.93272925,151.39,151.32,23.4056]
[1642060821795,48.76412925,151.39,151.32,23.4056]
[1642060821994,49.01412925,151.39,151.32,23.4056]
[1642060822595,49.01412925,151.39,151.3,2.642]
[1642060822795,49.01412925,151.39,151.3,2.892]
[1642060823199,58.92482925,151.39,151.3,2.892]
[1642060823796,2.642,151.38,151.29,130.87381355]
[1642060823997,2.892,151.38,151.29,131.12381355]
[1642060825114,0.25,151.38,151.29,131.12381355]
[1642060825320,10.1616,151.38,151.29,131.12381355]
[1642060826129,10.1616,151.38,151.29,103.0607]
[1642060827229,12.8036,151.38,151.29,10.1607]
[1642060828331,10.1616,151.38,151.29,10.1607]
[1642060829730,24.5293,151.37,151.29,10.1607]
[1642060830130,24.7793,151.37,151.29,10.1607]
[1642060831431,24.7793,151.37,151.3,2.642]
[1642060831831,24.7793,151.37,151.3,2.892]
[1642060832031,76.9085,151.39,151.3,2.892]
[1642060832232,76.9085,151.39,151.3,20.16598429]
[1642060832432,84.09462429,151.45,151.3,80.28598429]
[1642060832635,2.642,151.44,151.31,22.9938]
[1642060832933,2.642,151.44,151.31,89.1138]
[1642060833133,2.642,151.44,151.32,1.10348429]
[1642060833534,2.642,151.44,151.32,1.61348429]
[1642060833735,2.642,151.44,151.32,7.61348429]
[1642060833936,1.88292536,151.43,151.32,1.61348429]
[1642060834138,1.88292536,151.43,151.33,2.642]
[1642060834335,9.9088,151.42,151.33,12.5502]
[1642060834535,10.1588,151.42,151.33,12.8002]
[1642060834937,33.0914,151.42,151.33,12.8002]
[1642060835135,33.0914,151.42,151.33,12.5502]
[1642060835538,35.7334,151.42,151.32,2.642]
[1642060835738,33.0914,151.42,151.32,2.642]
[1642060835940,33.0914,151.42,151.32,2.892]
[1642060836768,18.0914,151.42,151.32,2.892]
[1642060836970,18.3414,151.42,151.32,2.892]
[1642060837872,28.2502,151.42,151.32,2.642]
[1642060838068,2.642,151.41,151.32,2.642]
[1642060838270,2.642,151.41,151.32,2.892]
[1642060838472,18.37839565,151.4,151.32,2.892]
[1642060838974,18.62839565,151.4,151.32,2.892]
[1642060840168,28.53869565,151.4,151.32,0.25]
[1642060840370,28.53869565,151.4,151.31,32.9038]
[1642060840571,28.53869565,151.4,151.31,33.1538]
[1642060840772,23.6044,151.39,151.31,33.1538]
[1642060840973,23.6044,151.39,151.31,34.26148264]
[1642060840974,23.8544,151.39,151.31,34.26148264]